bitfinex-derivatives/quotes_BTCF0:USTF0_20240815
["timestamp","ask_amount","ask_price","bid_price","bid_amount"]
[1723682723659,0.084743,58988.0,58987.0,0.00088]
[1723682723960,0.084745,58987.0,58978.0,0.23724]
[1723682724155,0.3608,58985.0,58981.0,0.2051]
[1723682724360,0.00025419,58988.0,58984.0,0.2051]
[1723682724559,0.00025419,58988.0,58987.0,0.289844]
[1723682724865,0.00125419,58988.0,58987.0,0.454844]
[1723682726364,0.00225419,58988.0,58987.0,0.449844]
[1723682726866,0.00125419,58988.0,58987.0,0.449844]
[1723682727083,0.00225419,58988.0,58987.0,0.449844]
[1723682727959,0.09225419,58988.0,58987.0,0.244744]
[1723682728460,0.09225419,58988.0,58987.0,0.084744]
[1723682728658,0.09225419,58988.0,58983.0,0.28985]
[1723682728861,0.09225419,58988.0,58978.0,0.24607028]
[1723682728862,0.3608,58985.0,58978.0,0.23724]
[1723682729073,0.084754,58981.0,58978.0,0.23724]
[1723682729370,0.0498,58980.0,58978.0,0.23724]
[1723682729668,0.0498,58980.0,58979.0,0.084756]
[1723682729865,0.0498,58980.0,58979.0,0.224756]
[1723682730175,0.3618,58985.0,58984.0,0.084749]
[1723682730363,0.3628,58985.0,58984.0,0.244749]
[1723682730861,0.3618,58985.0,58984.0,0.244749]
[1723682731963,0.3608,58985.0,58984.0,0.244749]
[1723682732360,0.00025419,58988.0,58987.0,0.084744]
[1723682732658,0.00025419,58988.0,58987.0,0.244744]
[1723682733269,0.17025419,58988.0,58987.0,0.244744]
[1723682733860,0.05068549,59004.0,58987.0,1.153344]
[1723682734170,0.4408,58996.0,58995.0,0.084733]
[1723682734369,0.4408,58996.0,58995.0,0.234733]
[1723682735265,0.08,58996.0,58995.0,0.234733]
[1723682735667,0.08,58996.0,58995.0,0.235733]
[1723682736874,0.081,58996.0,58995.0,0.235733]
[1723682737078,0.00025419,59001.0,59000.0,0.084726]
[1723682737377,0.00025419,59001.0,59000.0,0.595526]
[1723682737860,0.0465,59009.0,59001.0,0.084724]
[1723682738175,0.16,59009.0,59008.0,0.084714]
[1723682738470,0.00876813,59012.0,59011.0,0.08471]
[1723682738670,0.14,59012.0,59011.0,0.45981]
[1723682740476,0.147,59012.0,59011.0,0.45981]
[1723682741478,0.161,59012.0,59011.0,0.25471]
[1723682741873,0.161,59012.0,59008.0,0.446394]
[1723682742091,0.084711,59010.0,59009.0,0.084713]
[1723682742270,0.224711,59010.0,59009.0,0.084713]
[1723682742470,0.14,59010.0,59009.0,0.234713]
[1723682743276,0.224711,59010.0,59007.0,0.084715]
[1723682743469,0.14,59010.0,59007.0,0.084715]
[1723682743974,0.144,59010.0,59007.0,0.234715]
[1723682744770,0.084714,59008.0,59007.0,0.234715]
[1723682744979,0.224714,59008.0,59007.0,0.234715]
[1723682746079,0.226714,59008.0,59007.0,0.234715]
[1723682746278,0.227714,59008.0,59007.0,0.234715]
[1723682749269,0.588514,59008.0,59007.0,0.234715]
[1723682750483,0.588514,59008.0,59007.0,0.084715]
[1723682750779,0.084716,59007.0,59006.0,0.00025419]
[1723682750975,0.301816,59007.0,59006.0,0.16025419]
[1723682751785,0.2171,59007.0,59006.0,0.24497119]
[1723682752083,0.2181,59007.0,59006.0,0.24497119]
[1723682754774,0.171,59007.0,59006.0,0.24497119]
[1723682754978,0.171,59007.0,59006.0,1.44318819]
[1723682755378,0.171,59007.0,59006.0,0.89558819]
[1723682757187,0.171,59007.0,59006.0,1.40398819]
[1723682757480,0.171,59007.0,59006.0,0.94565735]
[1723682757985,0.10397419,59007.0,59006.0,1.45405735]
[1723682758178,0.001,59007.0,59006.0,1.45405735]
[1723682759278,0.001,59007.0,59006.0,1.48870519]
[1723682760286,0.001,59007.0,59006.0,1.04709232]
[1723682760782,0.001,59007.0,59006.0,1.05566865]
[1723682761377,0.001,59007.0,59006.0,1.49728152]
[1723682761774,0.091,59007.0,59006.0,0.98888152]
[1723682761978,0.091,59007.0,59006.0,0.81087119]
[1723682762278,0.091,59007.0,59006.0,0.45007119]
[1723682762479,0.091,59007.0,59006.0,0.16025419]
[1723682762480,0.175716,59007.0,59006.0,0.16025419]
[1723682762690,0.22640149,59007.0,59006.0,0.16025419]
[1723682762877,0.175716,59007.0,59006.0,0.16025419]
[1723682763084,0.222816,59007.0,59006.0,0.16025419]
[1723682763282,0.27350149,59007.0,59006.0,0.16025419]
[1723682763682,0.222816,59007.0,59006.0,0.16025419]
[1723682763884,0.222816,59007.0,59006.0,0.24497119]
[1723682763885,0.27352528,59007.0,59006.0,0.24497119]
[1723682764087,0.222816,59007.0,59006.0,0.24497119]
[1723682765186,0.27353478,59007.0,59006.0,0.24497119]
[1723682765392,0.222816,59007.0,59006.0,0.24497119]
[1723682765789,0.27354741,59007.0,59006.0,0.24497119]
[1723682765985,0.222816,59007.0,59006.0,0.24497119]
[1723682766396,0.222816,59007.0,59006.0,0.29527224]
[1723682766592,0.14174575,59007.0,59006.0,0.45007119]
[1723682767094,0.091,59007.0,59006.0,0.45007119]
[1723682768586,0.14174814,59007.0,59006.0,0.45007119]
[1723682768788,0.14174814,59007.0,59006.0,0.51708596]
[1723682769190,0.091,59007.0,59006.0,0.45007119]
[1723682771493,0.14174814,59007.0,59006.0,0.45007119]
[1723682773198,0.091,59007.0,59006.0,1.96908332]
[1723682773404,0.091,59007.0,59006.0,1.56908332]
[1723682773594,0.091,59007.0,59006.0,5.33908332]
[1723682774194,0.091,59007.0,59006.0,1.56908332]
[1723682774599,0.091,59007.0,59006.0,1.06068332]
[1723682774807,0.091,59007.0,59006.0,1.56908332]
[1723682776006,0.001,59007.0,59006.0,1.56908332]
[1723682777404,0.001,59007.0,59006.0,1.56824766]
[1723682777999,0.00025419,59017.0,59016.0,0.084703]
[1723682778198,0.17025419,59017.0,59016.0,0.29504911]
[1723682779196,0.17025419,59017.0,59016.0,0.244703]
[1723682779507,0.18225419,59017.0,59016.0,0.244703]
[1723682780004,0.19425419,59017.0,59016.0,0.244703]
[1723682780702,0.19425419,59017.0,59016.0,0.25363676]
[1723682782801,0.19425419,59017.0,59016.0,0.244703]
[1723682783203,0.19425419,59017.0,59016.0,0.16]
[1723682783204,0.27895519,59017.0,59016.0,0.16]
[1723682783709,0.27895519,59017.0,59013.0,0.41]
[1723682783710,1.10257419,59017.0,59009.0,0.05030442]
[1723682784008,0.41153435,59010.0,59006.0,0.00025419]
[1723682784205,0.084716,59007.0,59006.0,0.16025419]
[1723682784416,0.244716,59007.0,59006.0,0.24497119]
[1723682785003,0.244716,59007.0,59006.0,0.16025419]
[1723682786817,0.16,59007.0,59006.0,0.24497119]
[1723682787311,0.161,59007.0,59006.0,0.32968819]
[1723682787614,0.161,59007.0,59006.0,0.24497119]
[1723682787815,0.161,59007.0,59006.0,0.29524747]
[1723682788006,0.161,59007.0,59006.0,0.24497119]
[1723682788203,0.245716,59007.0,59006.0,0.24497119]
[1723682789506,0.161,59007.0,59006.0,0.29524747]
[1723682789706,0.161,59007.0,59006.0,1.23808819]
[1723682790008,0.161,59007.0,59006.0,0.24497119]
[1723682790203,0.161,59007.0,59006.0,0.31209934]
[1723682790408,0.245716,59007.0,59006.0,0.2952509]
[1723682791513,0.161,59007.0,59006.0,0.2952509]
[1723682791810,0.161,59007.0,59006.0,0.39681634]
[1723682792000,0.161,59007.0,59006.0,4.21461634]
[1723682792405,0.161,59007.0,59006.0,4.14748819]
[1723682792615,0.161,59007.0,59006.0,4.74060519]
[1723682792811,0.161,59007.0,59006.0,5.10140519]
[1723682793117,0.001,59007.0,59006.0,5.26524748]
[1723682793305,0.001,59007.0,59006.0,5.18133729]
[1723682793813,0.001,59007.0,59006.0,5.58133729]
[1723682794002,0.04965419,59017.0,59016.0,0.084703]
[1723682794200,0.18965419,59017.0,59016.0,0.449803]
[1723682794606,0.18965419,59017.0,59016.0,0.244703]
[1723682794815,0.24038854,59017.0,59016.0,0.244703]
[1723682795110,0.18965419,59017.0,59016.0,0.244703]
[1723682795415,0.18965419,59017.0,59016.0,0.29496391]
[1723682795813,0.20165419,59017.0,59016.0,0.29496391]
[1723682796310,0.28635519,59017.0,59016.0,0.29496391]
[1723682796513,0.29835519,59017.0,59016.0,0.29496391]
[1723682797008,0.29835519,59017.0,59016.0,0.244703]
[1723682797208,0.084706,59014.0,59012.0,0.13496891]
[1723682797521,0.14,59014.0,59013.0,0.084706]
[1723682797705,0.14,59014.0,59013.0,0.244706]
[1723682797906,0.224706,59014.0,59013.0,0.244706]
[1723682798912,0.232706,59014.0,59013.0,0.244706]
[1723682799414,0.29143139,59014.0,59013.0,0.244706]
[1723682800307,0.29243139,59014.0,59013.0,0.244706]
[1723682801011,0.241706,59014.0,59013.0,0.244706]
[1723682803615,0.241706,59014.0,59013.0,0.29501759]
[1723682804523,0.241706,59014.0,59013.0,0.244706]
[1723682806109,0.29244374,59014.0,59013.0,0.29501759]
[1723682806310,0.241706,59014.0,59013.0,0.244706]
[1723682806710,0.241706,59014.0,59013.0,0.16]
[1723682806911,0.08471,59011.0,59010.0,0.05031159]
[1723682807121,0.23471,59011.0,59010.0,0.21031159]
[1723682807310,0.23471,59011.0,59010.0,0.16]
[1723682807716,0.084716,59007.0,59006.0,0.05056578]
[1723682807919,0.64625923,59007.0,59006.0,0.16025419]
[1723682808110,0.595516,59007.0,59006.0,0.16025419]
[1723682808717,0.64625537,59007.0,59006.0,0.16025419]
[1723682809321,0.5108,59007.0,59006.0,0.45007119]
[1723682809517,0.56153667,59007.0,59006.0,0.45007119]
[1723682809910,0.56153667,59007.0,59006.0,0.60179821]
[1723682809911,0.15,59007.0,59006.0,0.60179821]
[1723682810422,0.15,59007.0,59006.0,0.53478819]
[1723682810629,0.151,59007.0,59006.0,0.53478819]
[1723682815523,0.151,59007.0,59006.0,0.69877805]
[1723682815726,0.05073667,59014.0,59006.0,0.53383372]
[1723682815916,0.15,59014.0,59013.0,0.06712798]
[1723682816225,0.15,59014.0,59013.0,0.23712798]
[1723682816824,0.151,59014.0,59013.0,0.23712798]
[1723682817220,0.151,59014.0,59013.0,0.32183498]
[1723682818730,0.151,59014.0,59013.0,0.40654198]
[1723682818731,0.159,59014.0,59013.0,0.40654198]
[1723682819223,0.167,59014.0,59013.0,0.34854725]
[1723682820329,0.167,59014.0,59013.0,0.26384025]
[1723682820628,0.251706,59014.0,59013.0,0.26384025]
[1723682820823,0.31936206,59014.0,59013.0,0.26384025]
[1723682821025,0.251706,59014.0,59013.0,0.26384025]
[1723682821531,0.251706,59014.0,59013.0,0.254707]
[1723682822120,0.31937872,59014.0,59013.0,0.254707]
[1723682822424,1.160066,59014.0,59007.0,0.05033915]
[1723682822727,0.445514,59008.0,59007.0,0.244716]
[1723682822928,0.28546999,59008.0,59007.0,0.244716]
[1723682823231,0.28546999,59008.0,59007.0,0.29505515]
[1723682823428,0.28546999,59008.0,59007.0,0.244716]
[1723682824933,0.253,59014.0,59013.0,0.084707]
[1723682825129,0.143,59014.0,59013.0,0.459807]
[1723682825330,0.142,59014.0,59013.0,4.29692441]
[1723682825526,0.14,59014.0,59013.0,4.38163141]
[1723682825834,0.14,59014.0,59013.0,0.32182441]
[1723682826029,0.19875556,59014.0,59013.0,0.254707]
[1723682826429,0.157,59014.0,59013.0,0.254707]
[1723682826734,0.157,59014.0,59013.0,0.459807]
[1723682827427,0.157,59014.0,59013.0,0.61163141]
[1723682827735,0.157,59014.0,59013.0,0.52692441]
[1723682830433,0.5178,59014.0,59013.0,0.254707]
[1723682830631,0.157,59014.0,59013.0,0.30503159]
[1723682830937,0.20774197,59014.0,59013.0,0.254707]
[1723682831129,0.157,59014.0,59013.0,0.254707]
[1723682831329,0.157,59014.0,59013.0,0.32182441]
[1723682831526,0.157,59014.0,59013.0,0.32178883]
[1723682833346,0.20774197,59014.0,59013.0,0.32178883]
[1723682833540,0.157,59014.0,59013.0,0.32178883]
[1723682834141,0.20774197,59014.0,59013.0,0.32178883]
[1723682834337,0.157,59014.0,59013.0,0.52688883]
[1723682834542,0.157,59014.0,59013.0,0.459807]
[1723682835440,0.157,59014.0,59013.0,0.544514]
[1723682837235,0.157,59014.0,59013.0,0.629221]
[1723682837839,0.157,59014.0,59013.0,0.544514]
[1723682838038,0.157,59014.0,59013.0,0.629221]
[1723682838242,0.157,59014.0,59013.0,0.544514]
[1723682838441,0.157,59014.0,59013.0,0.61164282]
[1723682839459,0.157,59014.0,59013.0,0.544514]
[1723682839860,0.157,59014.0,59013.0,0.629221]
[1723682840263,0.157,59014.0,59013.0,0.544514]
[1723682840451,0.157,59014.0,59013.0,0.629221]
[1723682841158,0.00025419,59017.0,59013.0,0.7751]
[1723682841361,0.05074197,59023.0,59016.0,0.445503]
[1723682841560,0.05074197,59023.0,59022.0,0.169388]
[1723682841561,0.23767526,59023.0,59022.0,0.169388]
[1723682841752,0.59847526,59023.0,59022.0,0.329388]
[1723682841957,0.59846921,59023.0,59022.0,0.329388]
[1723682842157,0.58154585,59023.0,59022.0,0.29502543]
[1723682842766,0.59354585,59023.0,59022.0,0.29602543]
[1723682843957,0.59354585,59023.0,59022.0,0.30482211]
[1723682844955,0.60054585,59023.0,59022.0,0.30582211]
[1723682845164,0.23974585,59023.0,59022.0,0.30582211]
[1723682845561,0.23974585,59023.0,59022.0,0.34018468]
[1723682845758,0.189,59023.0,59022.0,0.49197957]
[1723682845962,0.189,59023.0,59022.0,0.42487868]
[1723682846364,0.189,59023.0,59022.0,0.50864121]
[1723682846554,0.189,59023.0,59022.0,0.42487868]
[1723682846755,0.189,59023.0,59022.0,0.50288153]
[1723682846967,0.189,59023.0,59022.0,1.41116153]
[1723682847155,0.189,59023.0,59022.0,0.50288153]
[1723682847361,0.182,59023.0,59022.0,1.01116153]
[1723682847561,0.182,59023.0,59022.0,0.42487868]
[1723682848066,0.182,59023.0,59022.0,0.93315868]
[1723682848252,0.182,59023.0,59022.0,0.93215868]
[1723682848253,0.18,59023.0,59022.0,0.93215868]
[1723682848658,0.01,59023.0,59022.0,0.93215868]
[1723682851562,0.01,59023.0,59022.0,0.42387868]
[1723682851971,0.01,59023.0,59022.0,0.33918468]
[1723682852469,0.01,59023.0,59022.0,1.33215868]
[1723682854559,0.01,59023.0,59022.0,5.10215868]
[1723682855277,0.01,59023.0,59022.0,5.01746468]
[1723682855775,0.01,59023.0,59022.0,5.10215868]
[1723682855964,0.01,59023.0,59022.0,1.33215868]
[1723682856271,0.05073038,59041.0,59034.0,0.084676]
[1723682856465,0.1952,59041.0,59040.0,0.2051]
[1723682856663,0.1952,59041.0,59040.0,0.3451]
[1723682857157,0.1952,59041.0,59040.0,0.429768]
[1723682857566,0.2032,59041.0,59040.0,0.429768]
[1723682857969,0.2172,59041.0,59040.0,0.224668]
[1723682858881,0.2172,59041.0,59040.0,0.225668]
[1723682859064,0.2212,59041.0,59040.0,0.226668]
[1723682860665,0.2212,59041.0,59040.0,0.431768]
[1723682862670,1.49012,59041.0,59040.0,0.142]
[1723682862871,0.50816,59040.0,59017.0,0.05020729]
[1723682863073,0.4455,59018.0,59017.0,0.17894672]
[1723682863277,0.5855,59018.0,59017.0,0.17]
[1723682863868,0.084701,59017.0,59014.0,0.084705]
[1723682864070,0.14,59017.0,59016.0,0.22486668]
[1723682864572,0.14,59017.0,59016.0,0.30956968]
[1723682864779,0.14,59017.0,59016.0,0.22486668]
[1723682865970,0.14,59017.0,59016.0,0.22786668]
[1723682866481,0.14,59017.0,59016.0,0.23186668]
[1723682868179,0.14,59017.0,59016.0,0.24069799]
[1723682872571,0.224701,59017.0,59016.0,0.14716368]
[1723682872766,0.27530392,59017.0,59016.0,0.14716368]
[1723682872973,0.269801,59017.0,59016.0,0.14716368]
[1723682873273,0.354502,59017.0,59016.0,0.14716368]
[1723682874078,0.354502,59017.0,59016.0,0.14416368]
[1723682874673,0.354502,59017.0,59016.0,0.14116368]
[1723682876380,0.40504627,59017.0,59016.0,0.14116368]
[1723682876775,0.084707,59013.0,59012.0,0.00025419]
[1723682876976,0.615507,59013.0,59012.0,0.00025419]
[1723682877174,1.523867,59013.0,59012.0,0.00025419]
[1723682877982,0.17012783,59013.0,59012.0,0.23496319]
[1723682878182,0.53192783,59013.0,59012.0,0.23796319]
[1723682878576,0.53192783,59013.0,59012.0,0.24679609]
[1723682879078,0.53192783,59013.0,59012.0,0.23796319]
[1723682879778,0.53292783,59013.0,59012.0,0.23996319]
[1723682880687,0.53292783,59013.0,59012.0,0.15525419]
[1723682880688,0.61763483,59013.0,59012.0,0.15525419]
[1723682883492,1.61070183,59013.0,59012.0,0.00525419]
[1723682883787,0.61763483,59013.0,59012.0,0.15525419]
[1723682883985,0.53292783,59013.0,59012.0,0.23996319]
[1723682885189,0.61763483,59013.0,59012.0,0.23996319]
[1723682885489,0.53292783,59013.0,59012.0,0.23996319]
[1723682887589,0.17212783,59013.0,59012.0,0.23996319]
[1723682889176,0.16987364,59013.0,59012.0,1.12284119]
[1723682889381,0.16987364,59013.0,59012.0,0.23996319]
[1723682889776,0.16987364,59013.0,59012.0,4.00996319]
[1723682891183,0.16987364,59013.0,59012.0,0.23996319]
[1723682891478,0.25458064,59013.0,59012.0,0.23996319]
[1723682891675,0.16987364,59013.0,59012.0,0.23996319]
[1723682894188,0.16987364,59013.0,59012.0,0.30690624]
[1723682895792,0.16987364,59013.0,59012.0,0.23996319]
[1723682896493,0.16987364,59013.0,59012.0,0.30690624]
[1723682897281,0.16987364,59013.0,59012.0,0.29031838]
[1723682897696,0.16987364,59013.0,59012.0,0.23996319]
[1723682898086,0.16987364,59013.0,59012.0,0.29031838]
[1723682898385,0.16987364,59013.0,59012.0,0.23996319]
[1723682899191,0.22041791,59013.0,59012.0,0.23996319]
[1723682900285,0.16987364,59013.0,59012.0,0.23996319]
[1723682901486,0.16987364,59013.0,59012.0,0.52977219]
[1723682901694,0.16987364,59013.0,59012.0,0.62007219]
[1723682902294,0.16987364,59013.0,59012.0,4.39007219]
[1723682902682,0.16987364,59013.0,59012.0,0.62007219]
[1723682902888,0.16987364,59013.0,59012.0,0.49006319]
[1723682903396,0.16987364,59013.0,59012.0,0.44506319]
[1723682903983,0.16987364,59013.0,59012.0,0.59688748]
[1723682904187,0.16987364,59013.0,59012.0,0.59688866]
[1723682904388,0.16987364,59013.0,59012.0,0.44506319]
[1723682904593,0.16987364,59013.0,59012.0,0.23996319]
[1723682904801,0.25458064,59013.0,59012.0,0.15525419]
[1723682905098,0.32204773,59013.0,59012.0,0.23996319]
[1723682907097,0.32226843,59013.0,59012.0,0.23996319]
[1723682907490,0.25458064,59013.0,59012.0,0.23996319]
[1723682907889,0.61538064,59013.0,59012.0,0.23996319]
[1723682908493,0.68307198,59013.0,59012.0,0.23996319]
[1723682908688,0.61538064,59013.0,59012.0,0.2903113]
[1723682909398,0.61538064,59013.0,59012.0,0.23996319]
[1723682909700,0.61538064,59013.0,59012.0,0.2903005]
[1723682910090,0.61538064,59013.0,59012.0,0.23996319]
[1723682910395,0.61538064,59013.0,59012.0,0.29030082]
[1723682911300,0.61538064,59013.0,59012.0,0.23996319]
[1723682912088,0.74588764,59013.0,59012.0,0.15525419]
[1723682912394,0.79368764,59013.0,59012.0,0.15525419]
[1723682913395,1.70204764,59013.0,59012.0,0.15525419]
[1723682913697,0.084712,59010.0,59004.0,0.05034546]
[1723682913996,0.42850273,59005.0,59004.0,0.17]
[1723682914302,0.5308,59005.0,59004.0,0.17]
[1723682914891,0.5308,59005.0,59004.0,0.174]
[1723682915193,0.615519,59005.0,59004.0,0.174]
[1723682916391,0.615519,59005.0,59004.0,0.17]
[1723682916591,0.616519,59005.0,59004.0,0.171]
[1723682917192,0.617519,59005.0,59004.0,0.171]
[1723682917595,0.66825435,59005.0,59004.0,0.171]
[1723682917797,0.172,59005.0,59004.0,0.34044]
[1723682918299,0.172,59005.0,59004.0,4.11044]
[1723682918893,0.172,59005.0,59004.0,0.34044]
[1723682919506,0.172,59005.0,59004.0,0.89538]
[1723682920209,0.172,59005.0,59004.0,0.38694]
[1723682920398,0.172,59005.0,59004.0,0.89538]
[1723682920800,0.172,59005.0,59004.0,0.38694]
[1723682921002,0.172,59005.0,59004.0,0.89538]
[1723682921396,0.172,59005.0,59004.0,0.38694]
[1723682922101,0.172,59005.0,59004.0,0.89538]
[1723682922503,0.172,59005.0,59004.0,1.25618]
[1723682923503,0.172,59005.0,59004.0,0.74774]
[1723682925207,0.16674581,59005.0,59004.0,1.25618]
[1723682925407,0.16674581,59005.0,59004.0,1.33985882]
[1723682925611,0.16674581,59005.0,59004.0,0.74774]
[1723682925918,0.16674581,59005.0,59004.0,0.9127678]
[1723682926125,0.16674581,59005.0,59004.0,0.9128432]
[1723682926325,0.16674581,59005.0,59004.0,0.82916438]
[1723682926810,0.16674581,59005.0,59004.0,0.91298887]
[1723682927626,0.16674581,59005.0,59004.0,0.82916438]
[1723682928011,0.16674581,59005.0,59004.0,0.91297984]
[1723682928416,0.002,59005.0,59004.0,0.82916438]
[1723682928615,0.002,59005.0,59004.0,0.9767657]
[1723682928820,0.002,59005.0,59004.0,0.97676196]
[1723682929419,0.082,59005.0,59004.0,0.97676196]
[1723682931319,0.082,59005.0,59004.0,0.82916438]
[1723682931913,0.082,59005.0,59004.0,0.82905946]
[1723682936526,0.082,59005.0,59004.0,0.82900629]
[1723682936723,0.082,59005.0,59004.0,0.97660514]
[1723682937119,0.082,59005.0,59004.0,0.97660513]
[1723682937522,0.082,59005.0,59004.0,0.82900629]
[1723682937724,0.082,59005.0,59004.0,0.97660513]
[1723682939732,0.082,59005.0,59004.0,0.61580513]
[1723682939932,0.082,59005.0,59004.0,0.97660513]
[1723682941431,0.082,59005.0,59004.0,0.61580513]
[1723682941830,0.082,59005.0,59004.0,0.97660513]
[1723682942632,0.082,59005.0,59004.0,1.32489098]
[1723682942832,0.002,59005.0,59004.0,1.4251228]
[1723682943136,0.092,59005.0,59004.0,0.91372629]
[1723682943432,0.092,59005.0,59004.0,0.86722629]
[1723682943835,0.092,59005.0,59004.0,0.86627333]
[1723682944036,0.092,59005.0,59004.0,0.61652]
[1723682944239,0.176719,59005.0,59004.0,0.68355094]
[1723682944428,0.176719,59005.0,59004.0,0.61652]
[1723682944926,0.176719,59005.0,59004.0,0.5318]
[1723682945524,0.176719,59005.0,59004.0,0.59883094]
[1723682945726,0.268619,59005.0,59004.0,0.59883094]
[1723682946531,0.268619,59005.0,59004.0,0.61652]
[1723682946743,0.1839,59005.0,59004.0,0.82162]
[1723682948335,0.1839,59005.0,59004.0,0.90538704]
[1723682948835,0.1839,59005.0,59004.0,0.82162]
[1723682949141,0.1839,59005.0,59004.0,0.90538704]
[1723682949625,0.1839,59005.0,59004.0,0.82162]
[1723682949826,0.1839,59005.0,59004.0,0.9870069]
[1723682950044,0.1839,59005.0,59004.0,0.90538704]
[1723682951339,0.1839,59005.0,59004.0,0.82162]
[1723682952333,0.1839,59005.0,59004.0,0.90538704]
[1723682952534,0.1839,59005.0,59004.0,0.82162]
[1723682953240,0.1839,59005.0,59004.0,0.98708101]
[1723682953634,0.1839,59005.0,59004.0,0.98705359]
[1723682954239,0.1839,59005.0,59004.0,0.90328655]
[1723682957138,0.092,59005.0,59004.0,0.98800655]
[1723682957337,0.092,59005.0,59004.0,1.39917316]
[1723682957531,0.002,59005.0,59004.0,1.49204706]
[1723682958044,0.002,59005.0,59004.0,1.49149883]
[1723682958545,0.002,59005.0,59004.0,1.49149359]
[1723682958749,0.002,59005.0,59004.0,1.57621359]
[1723682959235,0.002,59005.0,59004.0,2.08465359]
[1723682959658,0.002,59005.0,59004.0,2.08465307]
[1723682960037,0.002,59005.0,59004.0,2.48465307]
[1723682960737,0.002,59005.0,59004.0,2.39172918]
[1723682961140,0.002,59005.0,59004.0,2.49242914]
[1723682961348,0.002,59005.0,59004.0,2.09242914]
[1723682961547,0.002,59005.0,59004.0,2.49242914]
[1723682961736,0.092,59005.0,59004.0,2.09242914]
[1723682961941,0.092,59005.0,59004.0,2.49242914]
[1723682962141,0.092,59005.0,59004.0,2.39172918]
[1723682962340,0.092,59005.0,59004.0,2.01135231]
[1723682962538,0.092,59005.0,59004.0,2.09301983]
[1723682964148,0.092,59005.0,59004.0,1.73221983]
[1723682964349,0.092,59005.0,59004.0,2.09301983]
[1723682965239,0.092,59005.0,59004.0,2.0930429]
[1723682966350,0.092,59005.0,59004.0,5.76235144]
[1723682966739,0.092,59005.0,59004.0,5.86303972]
[1723682967336,0.092,59005.0,59004.0,5.76235144]
[1723682967551,0.002,59005.0,59004.0,5.76235144]
[1723682968346,0.172,59005.0,59004.0,5.86302085]
[1723682968541,0.172,59005.0,59004.0,1.99235144]
[1723682968741,0.172,59005.0,59004.0,1.82944077]
[1723682969041,0.172,59005.0,59004.0,1.58457181]
[1723682969237,0.172,59005.0,59004.0,2.09301344]
[1723682969442,0.172,59005.0,59004.0,1.99233997]
[1723682971543,0.172,59005.0,59004.0,1.99179244]
[1723682971746,0.172,59005.0,59004.0,1.48335244]
[1723682971943,0.172,59005.0,59004.0,1.99179244]
[1723682972346,0.172,59005.0,59004.0,1.58061999]
[1723682972552,0.172,59005.0,59004.0,1.48334704]
[1723682974951,0.172,59005.0,59004.0,1.57648138]
[1723682976050,0.172,59005.0,59004.0,1.16531433]
[1723682976255,0.172,59005.0,59004.0,1.57647534]
[1723682976847,0.172,59005.0,59004.0,1.57641446]
[1723682979258,0.172,59005.0,59004.0,1.483341]
[1723682979455,0.16668548,59005.0,59004.0,1.57659134]
[1723682979660,0.00025419,59010.0,59009.0,0.084713]
[1723682979955,0.17025419,59010.0,59009.0,0.32583299]
[1723682980149,0.17025419,59010.0,59009.0,0.53093299]
[1723682980351,0.17025419,59010.0,59009.0,0.89173299]
[1723682980553,0.17025419,59010.0,59009.0,0.53093299]
[1723682980753,0.17125419,59010.0,59009.0,0.53093299]
[1723682980949,0.17225419,59010.0,59009.0,0.89373299]
[1723682981460,0.17225419,59010.0,59009.0,0.90265588]
[1723682984658,0.17225419,59010.0,59009.0,0.54185588]
[1723682984955,0.17225419,59010.0,59009.0,0.46073589]
[1723682985455,0.2230765,59010.0,59009.0,0.46073589]
[1723682985860,0.2230765,59010.0,59009.0,0.33763589]
[1723682986361,0.2230765,59010.0,59009.0,0.42155816]
[1723682986859,0.22307945,59010.0,59009.0,0.33763589]
[1723682987165,0.2230795,59010.0,59009.0,0.33763589]
[1723682987352,0.22307729,59010.0,59009.0,0.33763589]
[1723682989854,0.22307729,59010.0,59009.0,0.42155816]
[1723682990061,0.17225419,59010.0,59009.0,0.77978953]
[1723682992358,0.17225419,59010.0,59009.0,0.86450253]
[1723682994269,0.17225419,59010.0,59009.0,1.12806716]
[1723682994568,0.17225419,59010.0,59009.0,1.12792746]
[1723682995456,0.06775775,59019.0,59009.0,1.54551142]
[1723682995656,0.05081627,59020.0,59018.0,0.52667474]
[1723682995857,0.15,59020.0,59019.0,0.16210941]
[1723682996158,0.15,59020.0,59019.0,0.98324017]
[1723682996361,0.15,59020.0,59019.0,0.61907458]
[1723682996763,0.15,59020.0,59019.0,0.73501677]
[1723682997265,0.153,59020.0,59019.0,0.73501677]
[1723682997468,0.153,59020.0,59019.0,0.47150541]
[1723682997661,0.153,59020.0,59019.0,0.61907176]
[1723682997965,0.237697,59020.0,59019.0,0.2312283]
[1723682998182,1.146017,59020.0,59019.0,0.222]
[1723682998364,1.21377475,59020.0,59019.0,0.222]
[1723682998671,1.146017,59020.0,59019.0,0.222]
[1723682998871,1.146017,59020.0,59019.0,0.14]
[1723682999063,1.146017,59020.0,59017.0,0.26]
[1723682999064,1.149017,59020.0,59017.0,0.342]
[1723682999265,0.0847,59018.0,59017.0,0.232]
[1723682999462,0.2347,59018.0,59017.0,0.232]
[1723682999657,1.18812,59018.0,59017.0,0.232]
[1723682999863,1.18812,59018.0,59017.0,0.15]
[1723683000364,1.27282,59018.0,59017.0,0.15]
[1723683001271,1.18812,59018.0,59017.0,0.15]
[1723683002469,1.18912,59018.0,59017.0,0.15]
[1723683002974,1.18912,59018.0,59010.0,0.05025247]
[1723683002975,0.50832,59017.0,59010.0,0.05025247]
[1723683003172,0.3608,59011.0,59004.0,0.05025247]
[1723683003368,0.3608,59011.0,58996.0,0.28873259]
[1723683003369,0.084726,59000.0,58999.0,0.05025247]
[1723683003573,0.084727,58999.0,58995.0,0.05028914]
[1723683003874,0.084734,58994.0,58992.0,0.05028914]
[1723683004170,0.3608,58997.0,58994.0,0.084734]